bitfinex/quotes_BTCUSD_20250529
["timestamp","ask_amount","ask_price","bid_price","bid_amount"]
[1748488096698,0.20325142,108240.0,108230.0,0.0026]
[1748488096914,0.50633142,108240.0,108230.0,0.01884823]
[1748488097125,0.48633142,108240.0,108230.0,0.11740823]
[1748488097557,0.50480827,108240.0,108230.0,0.11740823]
[1748488098002,0.50480827,108240.0,108230.0,0.13390823]
[1748488099725,0.20272827,108240.0,108230.0,0.43399844]
[1748488100861,0.20272827,108240.0,108230.0,0.13390823]
[1748488101281,0.50580827,108240.0,108230.0,0.43399844]
[1748488103188,0.20272827,108240.0,108230.0,0.42823272]
[1748488103404,0.20272827,108240.0,108230.0,0.52505239]
[1748488104281,0.18272827,108240.0,108230.0,0.52505239]
[1748488105360,0.01947634,108240.0,108230.0,1.47648234]
[1748488105569,0.03795336,108240.0,108230.0,1.49672809]
[1748488106417,0.02871532,108240.0,108230.0,1.51521002]
[1748488106623,0.02871532,108240.0,108230.0,1.51518126]
[1748488106833,0.21348989,108240.0,108230.0,1.51518126]
[1748488107269,0.21348989,108240.0,108230.0,1.52982861]
[1748488107958,0.21348989,108240.0,108230.0,1.82442861]
[1748488108396,0.21348989,108240.0,108230.0,1.83366776]
[1748488109727,0.20425159,108240.0,108230.0,1.51497916]
[1748488109951,0.20425159,108240.0,108230.0,1.59715131]
[1748488109952,0.18577457,108240.0,108230.0,1.59715131]
[1748488110806,0.18577457,108240.0,108230.0,1.58617339]
[1748488111017,0.18577457,108240.0,108230.0,1.59715509]
[1748488111228,0.18577457,108240.0,108230.0,1.60639467]
[1748488111433,0.16577457,108240.0,108230.0,1.60639467]
[1748488111635,0.16577457,108240.0,108230.0,1.59715509]
[1748488114658,0.16577457,108240.0,108230.0,1.29706488]
[1748488114866,0.16577457,108240.0,108230.0,1.59715509]
[1748488115083,0.16577457,108240.0,108230.0,1.59715991]
[1748488117015,0.16577457,108240.0,108230.0,1.25715991]
[1748488117231,0.16577457,108240.0,108230.0,1.24065991]
[1748488117659,0.16577457,108240.0,108230.0,0.9405697]
[1748488117873,0.16577457,108240.0,108230.0,1.24065991]
[1748488118095,0.16577457,108240.0,108230.0,0.9405697]
[1748488118306,0.16577457,108240.0,108230.0,1.14221991]
[1748488118506,0.14577457,108240.0,108230.0,1.22455991]
[1748488119140,0.14577457,108240.0,108230.0,1.2245624]
[1748488119342,0.14577457,108240.0,108230.0,1.2403624]
[1748488119976,0.14577457,108240.0,108230.0,0.94027219]
[1748488120191,0.14577457,108240.0,108230.0,1.2403624]
[1748488120400,0.14577457,108240.0,108230.0,0.94027219]
[1748488120605,0.14577457,108240.0,108230.0,1.2403624]
[1748488120819,0.14577457,108240.0,108230.0,0.94027219]
[1748488121028,0.14577457,108240.0,108230.0,1.2403624]
[1748488121234,0.14577457,108240.0,108230.0,0.94027219]
[1748488121440,0.14577457,108240.0,108230.0,1.2403624]
[1748488122081,0.14577457,108240.0,108230.0,0.94027219]
[1748488122323,0.14577457,108240.0,108230.0,1.2403624]
[1748488122545,0.14577457,108240.0,108230.0,1.2562624]
[1748488123259,0.14577457,108240.0,108230.0,1.25626523]
[1748488123469,0.14577457,108240.0,108230.0,1.24036523]
[1748488124126,0.14577457,108240.0,108230.0,1.25626523]
[1748488124748,0.14577457,108240.0,108230.0,0.95617502]
[1748488125192,0.14577457,108240.0,108230.0,1.25626523]
[1748488125613,0.12577457,108240.0,108230.0,1.25626523]
[1748488126879,0.12577457,108240.0,108230.0,0.95617502]
[1748488127140,0.12577457,108240.0,108230.0,1.25626523]
[1748488127348,0.12577457,108240.0,108230.0,1.25626871]
[1748488128601,0.21247042,108250.0,108240.0,0.22461321]
[1748488128811,0.21247042,108250.0,108240.0,0.65065102]
[1748488129027,0.21247042,108250.0,108240.0,0.64141195]
[1748488129271,0.20323298,108250.0,108240.0,0.44739874]
[1748488129516,0.20323298,108250.0,108240.0,0.43640422]
[1748488129764,0.19399528,108250.0,108240.0,0.51588051]
[1748488130617,0.19399528,108250.0,108240.0,0.2157903]
[1748488130830,0.20325176,108240.0,108230.0,1.30829889]
[1748488131034,0.20325176,108240.0,108230.0,1.49679284]
[1748488131655,0.20325176,108240.0,108230.0,1.20219284]
[1748488131852,0.19401329,108240.0,108230.0,1.18371428]
[1748488132056,0.19401329,108240.0,108230.0,1.20419284]
[1748488132359,0.19401329,108240.0,108230.0,1.50628314]
[1748488132554,0.17401329,108240.0,108230.0,1.4970439]
[1748488132790,0.17401329,108240.0,108230.0,1.50628314]
[1748488135222,0.17401329,108240.0,108230.0,1.50751155]
[1748488135467,0.17401329,108240.0,108230.0,1.49827231]
[1748488136706,0.17401329,108240.0,108230.0,1.50751163]
[1748488137485,0.17401329,108240.0,108230.0,1.80211163]
[1748488137883,0.17401329,108240.0,108230.0,1.81135078]
[1748488138086,0.00923847,108240.0,108230.0,1.81135078]
[1748488138291,0.02771523,108240.0,108230.0,1.82058976]
[1748488138697,0.02771523,108240.0,108230.0,1.72214976]
[1748488138901,0.01847668,108240.0,108230.0,1.82054976]
[1748488139102,0.02771523,108240.0,108230.0,1.82054976]
[1748488139307,0.0277154,108240.0,108230.0,1.81131078]
[1748488139728,0.18323418,108250.0,108230.0,1.78974967]
[1748488139892,0.18323418,108250.0,108240.0,0.33289964]
[1748488140096,0.18323418,108250.0,108240.0,0.33059021]
[1748488140294,0.18323418,108250.0,108240.0,0.0305]
[1748488140503,0.18323418,108250.0,108240.0,0.33059021]
[1748488140705,0.18323418,108250.0,108240.0,0.31509021]
[1748488141460,0.1829108,108250.0,108240.0,0.31509021]
[1748488141613,0.1829108,108250.0,108240.0,0.31609021]
[1748488141820,0.1828646,108250.0,108240.0,0.31709021]
[1748488143344,0.1828646,108250.0,108240.0,0.61169021]
[1748488143682,0.1828646,108250.0,108240.0,0.59669021]
[1748488146791,0.1628646,108250.0,108240.0,0.59669021]
[1748488148182,0.1628646,108250.0,108240.0,0.62389114]
[1748488148570,0.1628646,108250.0,108240.0,0.62389093]
[1748488150094,0.1628646,108250.0,108240.0,0.63855884]
[1748488150299,0.1628646,108250.0,108240.0,0.64779756]
[1748488150511,0.1628646,108250.0,108240.0,0.33846863]
[1748488150729,0.1628646,108250.0,108240.0,0.63855884]
[1748488152317,0.1628646,108250.0,108240.0,0.32226863]
[1748488152542,0.1628646,108250.0,108240.0,0.62236036]
[1748488153874,0.1428646,108250.0,108240.0,0.62236036]
[1748488156346,0.1428646,108250.0,108240.0,0.60769245]
[1748488156561,0.1428646,108250.0,108240.0,0.62236036]
[1748488158030,0.1428646,108250.0,108240.0,0.62345958]
[1748488158232,0.1428646,108250.0,108240.0,0.72185958]
[1748488159450,0.1428646,108250.0,108240.0,0.71085734]
[1748488160286,0.1428646,108250.0,108240.0,0.41076713]
[1748488160943,0.1228646,108250.0,108240.0,0.41076713]
[1748488161807,0.1228646,108250.0,108240.0,0.4217832]
[1748488163095,0.1228646,108250.0,108240.0,0.8206632]
[1748488163096,0.1386646,108250.0,108240.0,0.8206632]
[1748488163513,0.1386646,108250.0,108240.0,0.7222632]
[1748488163745,0.1548646,108250.0,108240.0,0.80599529]
[1748488165050,0.1548646,108250.0,108240.0,1.1060855]
[1748488165256,0.1548646,108250.0,108240.0,1.10608377]
[1748488165923,0.1548646,108250.0,108240.0,0.80599356]
[1748488166337,0.1548646,108250.0,108240.0,1.10608377]
[1748488166552,0.1386646,108250.0,108240.0,1.10608377]
[1748488167205,0.1386646,108250.0,108240.0,0.81148377]
[1748488167427,0.1537646,108250.0,108240.0,0.81148377]
[1748488167884,0.1386646,108250.0,108240.0,0.81148377]
[1748488168097,0.1186646,108250.0,108240.0,0.81148377]
[1748488168727,0.1337646,108250.0,108240.0,0.81148377]
[1748488168969,0.1337646,108250.0,108240.0,0.81140377]
[1748488169389,0.1337646,108250.0,108240.0,0.51131012]
[1748488172097,0.1186646,108250.0,108240.0,0.51131012]
[1748488172523,0.4215046,108250.0,108240.0,0.51131012]
[1748488172775,0.4215046,108250.0,108240.0,0.81140033]
[1748488173427,0.4215046,108250.0,108240.0,0.81139986]
[1748488174083,0.4215046,108250.0,108240.0,0.84901824]
[1748488175150,0.4015046,108250.0,108240.0,0.84901824]
[1748488178320,0.4015046,108250.0,108240.0,0.51130965]
[1748488178529,0.4015046,108250.0,108240.0,0.84901824]
[1748488179613,0.4015046,108250.0,108240.0,0.51130965]
[1748488179812,0.4015046,108250.0,108240.0,0.84901824]
[1748488181725,0.4015046,108250.0,108240.0,0.45013824]
[1748488181937,0.4015046,108250.0,108240.0,0.45013839]
[1748488182139,0.3815046,108250.0,108240.0,0.45013839]
[1748488184178,0.3815046,108250.0,108240.0,0.43912781]
[1748488185010,0.3815046,108250.0,108240.0,0.45013892]
[1748488186390,0.3815046,108250.0,108240.0,0.43912781]
[1748488186595,0.3815046,108250.0,108240.0,0.45014008]
[1748488189265,0.3615046,108250.0,108240.0,0.45014008]
[1748488193103,0.3615046,108250.0,108240.0,0.11243149]
[1748488193321,0.3777046,108250.0,108240.0,0.10141922]
[1748488193530,0.3777046,108250.0,108240.0,0.43912781]
[1748488194418,0.3457046,108250.0,108240.0,0.43912781]
[1748488194633,0.3457046,108250.0,108240.0,0.10141922]
[1748488194837,0.3457046,108250.0,108240.0,0.43912781]
[1748488195050,0.3617046,108250.0,108240.0,0.34080781]
[1748488195253,0.3617046,108250.0,108240.0,0.43912781]
[1748488196153,0.3457046,108250.0,108240.0,0.43912781]
[1748488196369,0.3455846,108250.0,108240.0,0.43912781]
[1748488196785,0.3455846,108250.0,108240.0,0.46643944]
[1748488197421,0.30272,108250.0,108240.0,0.46643944]
[1748488197635,0.4874775,108250.0,108240.0,0.46643944]
[1748488199053,0.4874775,108250.0,108240.0,0.43912781]
[1748488199263,0.4874775,108250.0,108240.0,0.45013655]
[1748488200327,0.4874775,108250.0,108240.0,0.43912781]
[1748488200532,0.4874775,108250.0,108240.0,0.45013656]
[1748488201430,0.4874775,108250.0,108240.0,0.11242797]
[1748488201626,0.4874775,108250.0,108240.0,0.45013656]
[1748488201848,0.4874375,108250.0,108240.0,0.46633656]
[1748488201983,0.4874375,108250.0,108240.0,0.80404515]
[1748488202204,0.4874375,108250.0,108240.0,0.12862797]
[1748488202459,0.4874375,108250.0,108240.0,0.46633656]
[1748488202986,0.4874375,108250.0,108240.0,0.12862797]
[1748488203266,0.4874375,108250.0,108240.0,0.46633656]
[1748488203826,0.4874375,108250.0,108240.0,0.45013656]
[1748488204000,0.4874375,108250.0,108240.0,0.11242797]
[1748488204405,0.4674375,108250.0,108240.0,0.45013656]
[1748488204809,0.4673975,108250.0,108240.0,0.45013656]
[1748488205012,0.4673975,108250.0,108240.0,0.43912781]
[1748488205261,0.4673975,108250.0,108240.0,0.45013656]
[1748488205850,0.4673975,108250.0,108240.0,0.45013734]
[1748488206263,0.4673975,108250.0,108240.0,0.43912781]
[1748488209114,0.1647575,108250.0,108240.0,0.43912781]
[1748488209320,0.4673575,108250.0,108240.0,0.43912781]
[1748488209735,0.4673575,108250.0,108240.0,0.45542781]
[1748488209954,0.4673575,108250.0,108240.0,0.43912781]
[1748488211544,0.4473575,108250.0,108240.0,0.43912781]
[1748488215293,0.4473575,108250.0,108240.0,0.4501397]
[1748488216282,0.4473575,108250.0,108240.0,0.11243111]
[1748488216486,0.4473575,108250.0,108240.0,0.4501397]
[1748488218357,0.4473575,108250.0,108240.0,0.45013906]
[1748488218619,0.4273575,108250.0,108240.0,0.43912781]
[1748488219467,0.4273575,108250.0,108240.0,0.45013906]
[1748488219754,0.4273575,108250.0,108240.0,0.43912781]
[1748488221348,0.4273575,108250.0,108240.0,0.45013906]
[1748488222547,0.4273575,108250.0,108240.0,0.45014171]
[1748488222971,0.4272375,108250.0,108240.0,0.45014171]
[1748488223534,0.4272375,108250.0,108240.0,0.11243312]
[1748488224372,0.4272375,108250.0,108240.0,0.45014171]
[1748488224582,0.4277375,108250.0,108240.0,0.45014171]
[1748488224788,0.4277375,108250.0,108240.0,0.11243312]
[1748488224999,0.4277375,108250.0,108240.0,0.45014171]
[1748488225636,0.4077375,108250.0,108240.0,0.11243312]
[1748488225842,0.4077375,108250.0,108240.0,0.45014171]
[1748488226047,0.4077375,108250.0,108240.0,0.11243312]
[1748488226253,0.4077375,108250.0,108240.0,0.45014171]
[1748488226852,0.4076975,108250.0,108240.0,0.11243579]
[1748488227277,0.4076975,108250.0,108240.0,0.45014438]
[1748488228084,0.4076975,108250.0,108240.0,0.11243579]
[1748488228437,0.4076975,108250.0,108240.0,0.45014438]
[1748488228868,0.4076975,108250.0,108240.0,0.11243579]
[1748488229416,0.4076975,108250.0,108240.0,0.45014438]
[1748488230033,0.1052575,108250.0,108240.0,0.45014438]
[1748488230905,0.1052575,108250.0,108240.0,0.45014469]
[1748488231979,0.1052575,108250.0,108240.0,0.46554469]
[1748488232813,0.0852575,108250.0,108240.0,0.46554469]
[1748488233024,0.0852575,108250.0,108240.0,0.45014469]
[1748488234985,0.0852575,108250.0,108240.0,0.45014707]
[1748488236889,0.0852575,108250.0,108240.0,0.11243848]
[1748488237103,0.0852575,108250.0,108240.0,0.45014707]
[1748488237289,0.0852575,108250.0,108240.0,0.35182707]
[1748488237542,0.0852575,108250.0,108240.0,0.44986707]
[1748488238181,0.3876575,108250.0,108240.0,0.44986707]
[1748488239007,0.3876575,108250.0,108240.0,0.43884781]
[1748488239210,0.3876575,108250.0,108240.0,0.44986822]
[1748488239866,0.3676575,108250.0,108240.0,0.01411963]
[1748488240078,0.3998575,108250.0,108240.0,0.10113922]
[1748488240292,0.3998575,108250.0,108240.0,0.43774859]
[1748488245483,0.3840575,108250.0,108240.0,0.43774859]
[1748488246558,0.3676575,108250.0,108240.0,0.43774859]
[1748488246974,0.3476575,108250.0,108240.0,0.43774859]
[1748488253631,0.0452575,108250.0,108240.0,0.43774859]
[1748488253792,0.3475775,108250.0,108240.0,0.43774859]
[1748488254000,0.0005,108250.0,108240.0,0.43774859]
[1748488254194,0.1852575,108250.0,108240.0,0.43774859]
[1748488254599,0.1852575,108250.0,108240.0,0.43872889]
[1748488256394,0.1852575,108250.0,108240.0,0.1010203]
[1748488256615,0.1852575,108250.0,108240.0,0.43774859]
[1748488259906,0.1852575,108250.0,108240.0,0.10004]
[1748488260330,0.1852575,108250.0,108240.0,0.43774859]
[1748488262372,0.1652575,108250.0,108240.0,0.43774859]
[1748488263422,0.1803575,108250.0,108240.0,0.10004]
[1748488263669,0.1803575,108250.0,108240.0,0.43774859]
[1748488265586,0.1968575,108250.0,108240.0,0.09996]
[1748488265802,0.1968575,108250.0,108240.0,0.43766859]
[1748488267104,0.1968575,108250.0,108240.0,0.09996]
[1748488267738,0.1968575,108250.0,108240.0,0.43766859]
[1748488269489,0.1768575,108250.0,108240.0,0.43766859]
[1748488272409,0.1768575,108250.0,108240.0,0.09996]
[1748488272617,0.1768575,108250.0,108240.0,0.43766859]
[1748488273926,0.1768575,108250.0,108240.0,0.09996]
[1748488274135,0.1768575,108250.0,108240.0,0.43766859]
[1748488275315,0.1603575,108250.0,108240.0,0.43766859]
[1748488275578,0.1452575,108250.0,108240.0,0.43766859]
[1748488275817,0.1452575,108250.0,108240.0,0.45296859]
[1748488276049,0.4474175,108250.0,108240.0,0.45296859]
[1748488276547,0.4274175,108250.0,108240.0,0.45296859]
[1748488277247,0.4274175,108250.0,108240.0,0.11526]
[1748488277487,0.4274175,108250.0,108240.0,0.45296859]
[1748488277982,0.1252575,108250.0,108240.0,0.79067718]
[1748488278237,0.1252575,108250.0,108240.0,0.81821942]
[1748488278895,0.1252575,108250.0,108240.0,0.48051083]
[1748488279074,0.1252575,108250.0,108240.0,0.67452404]
[1748488279321,0.1252575,108250.0,108240.0,0.48051083]
[1748488279533,0.1252575,108250.0,108240.0,0.77511083]
[1748488279952,0.1252575,108250.0,108240.0,1.11281942]
[1748488281013,0.1252575,108250.0,108240.0,0.77511083]
[1748488283629,0.1072575,108250.0,108240.0,0.77511083]
[1748488284070,0.1072575,108250.0,108240.0,0.43740224]
[1748488284290,0.1072575,108250.0,108240.0,0.39456]
[1748488284502,0.1225575,108250.0,108240.0,0.39456]
[1748488284719,0.1376575,108250.0,108240.0,0.73226859]
[1748488284933,0.1376575,108250.0,108240.0,0.39456]
[1748488285155,0.1376575,108250.0,108240.0,0.73226859]
[1748488285404,0.1376575,108250.0,108240.0,0.43766859]
[1748488285619,0.1376575,108250.0,108240.0,0.09996]
[1748488289716,0.1225575,108250.0,108240.0,0.09996]
[1748488290812,0.1025575,108250.0,108240.0,0.09996]
[1748488291664,0.1025575,108250.0,108240.0,0.43766859]
[1748488292970,0.0872575,108250.0,108240.0,0.43766859]
[1748488294164,0.1036575,108250.0,108240.0,0.43766859]
[1748488294368,0.1036575,108250.0,108240.0,0.09996]
[1748488294590,0.1036575,108250.0,108240.0,0.43766859]
[1748488297588,0.0836575,108250.0,108240.0,0.45614859]
[1748488297796,0.0836575,108250.0,108240.0,0.43766859]
[1748488299699,0.0672575,108250.0,108240.0,0.43766859]
[1748488302039,0.0672575,108250.0,108240.0,0.09996]
[1748488302443,0.0672575,108250.0,108240.0,0.002]
[1748488302685,0.0672575,108250.0,108240.0,0.33970859]
[1748488302888,0.0672575,108250.0,108240.0,0.09984]
[1748488304888,0.0482575,108250.0,108240.0,0.09984]
[1748488306099,0.0642575,108250.0,108240.0,0.09984]
[1748488311011,0.3662575,108250.0,108240.0,0.09984]
[1748488311223,0.0642575,108250.0,108240.0,0.09984]
[1748488311431,0.3502575,108250.0,108240.0,0.09984]
[1748488311658,0.3502575,108250.0,108240.0,0.33970859]
[1748488311892,0.34864085,108250.0,108240.0,0.09984]
[1748488312105,0.53339835,108250.0,108240.0,0.09984]
[1748488316942,0.51749835,108250.0,108240.0,0.09984]
[1748488317615,0.51749835,108250.0,108240.0,0.43754859]
[1748488319027,0.49749835,108250.0,108240.0,0.43754859]
[1748488320220,0.49749835,108250.0,108240.0,0.09984]
[1748488320467,0.49749835,108250.0,108240.0,0.43754859]
[1748488322617,0.51339835,108250.0,108240.0,0.43746859]
[1748488324549,0.49749835,108250.0,108240.0,0.43746859]
[1748488326262,0.47749835,108250.0,108240.0,0.43522859]
[1748488328180,0.47749835,108250.0,108240.0,0.09776]
[1748488328432,0.47749835,108250.0,108240.0,0.43546859]
[1748488329183,0.47749835,108250.0,108240.0,0.09776]
[1748488329184,0.49289835,108250.0,108240.0,0.09776]
[1748488332241,0.19401312,108240.0,108230.0,0.37000953]
[1748488332481,0.19401312,108240.0,108230.0,0.46776953]
[1748488333210,0.17401312,108240.0,108230.0,0.46776953]
[1748488333457,0.17401312,108240.0,108230.0,0.46976953]
[1748488333690,0.17401312,108240.0,108230.0,0.47176953]
[1748488334609,0.18325167,108240.0,108230.0,0.13406094]
[1748488334824,0.18325167,108240.0,108230.0,0.47176953]
[1748488335033,0.18325167,108240.0,108230.0,0.45616953]
[1748488335914,0.18325167,108240.0,108230.0,0.11846094]
[1748488336119,0.18325167,108240.0,108230.0,0.45616953]
[1748488340173,0.16325167,108240.0,108230.0,0.45616953]
[1748488341493,0.16325167,108240.0,108230.0,0.47206953]
[1748488342149,0.16325167,108240.0,108230.0,0.11846094]
[1748488342385,0.16325167,108240.0,108230.0,0.45666953]
[1748488342588,0.16325167,108240.0,108230.0,0.45934953]
[1748488342795,0.16325167,108240.0,108230.0,0.47042118]
[1748488343023,0.46505167,108240.0,108230.0,0.50212118]
[1748488344520,0.46505167,108240.0,108230.0,0.50212221]
[1748488347445,0.44505167,108240.0,108230.0,0.48364221]
[1748488348724,0.44505167,108240.0,108230.0,0.4836346]
[1748488352081,0.44505167,108240.0,108230.0,0.48363444]
[1748488352922,0.44505167,108240.0,108230.0,0.04592591]
[1748488353134,0.44505167,108240.0,108230.0,0.3836345]
[1748488354357,0.12325167,108240.0,108230.0,0.3836345]
[1748488354566,0.12325167,108240.0,108230.0,0.33770859]
[1748488354791,0.42497167,108240.0,108230.0,0.3812745]
[1748488355205,0.42497167,108240.0,108230.0,0.09764]
[1748488355407,0.42497167,108240.0,108230.0,0.43534859]
[1748488356654,0.42497167,108240.0,108230.0,0.43604708]
[1748488358123,0.42493167,108240.0,108230.0,0.43604708]
[1748488361500,0.40493167,108240.0,108230.0,0.43604708]
[1748488361911,0.40493167,108240.0,108230.0,0.09833849]
[1748488362121,0.40493167,108240.0,108230.0,0.43604708]
[1748488362814,0.40493167,108240.0,108230.0,0.09833849]
[1748488363051,0.40493167,108240.0,108230.0,0.43604708]
[1748488363759,0.40493167,108240.0,108230.0,0.09833849]
[1748488363975,0.40493167,108240.0,108230.0,0.43604708]
[1748488365119,0.42073167,108240.0,108230.0,0.43604708]
[1748488365581,0.43613167,108240.0,108230.0,0.43604708]
[1748488367718,0.43613167,108240.0,108230.0,0.09833849]
[1748488368425,0.41613167,108240.0,108230.0,0.43604708]
[1748488369277,0.41613167,108240.0,108230.0,0.09833849]
[1748488369479,0.41613167,108240.0,108230.0,0.43604708]
[1748488373685,0.41613167,108240.0,108230.0,0.09833849]
[1748488373900,0.41613167,108240.0,108230.0,0.33840708]
[1748488374109,0.41613167,108240.0,108230.0,0.43604708]
[1748488375580,0.39613167,108240.0,108230.0,0.43604708]
[1748488378134,0.09445167,108240.0,108230.0,0.43604708]
[1748488378286,0.39593167,108240.0,108230.0,0.43604708]
[1748488378682,0.39593167,108240.0,108230.0,0.09833849]
[1748488378926,0.39593167,108240.0,108230.0,0.43604708]
[1748488380872,0.39593167,108240.0,108230.0,0.09833849]
[1748488381272,0.39593167,108240.0,108230.0,0.43604708]
[1748488383764,0.34191855,108240.0,108230.0,0.43604708]
[1748488383944,0.52669312,108240.0,108230.0,0.09817849]
[1748488385669,0.52669312,108240.0,108230.0,0.43588708]
[1748488386698,0.52669312,108240.0,108230.0,0.09817849]
[1748488387940,0.52669312,108240.0,108230.0,0.00069849]
[1748488388142,0.61237903,108240.0,108230.0,0.00069849]
[1748488388344,1.04343298,108240.0,108230.0,0.00933868]
[1748488388552,1.04824638,108240.0,108230.0,0.00933952]
[1748488388730,1.04824638,108240.0,108230.0,0.00069849]
[1748488389164,0.97710132,108240.0,108230.0,0.00069849]
[1748488390010,0.97910132,108240.0,108230.0,0.00069849]
[1748488390658,0.98110132,108240.0,108230.0,0.00069849]
[1748488390872,0.96110132,108240.0,108230.0,0.00069849]
[1748488391086,0.97033987,108240.0,108230.0,0.00069849]
[1748488391721,1.02455466,108240.0,108230.0,0.00069849]
[1748488391932,0.97033987,108240.0,108230.0,0.00069849]
[1748488397682,0.20334535,108190.0,108180.0,0.2946]
[1748488397895,0.20334535,108190.0,108170.0,1.06316859]
[1748488397896,0.17412073,108180.0,108170.0,1.06316859]
[1748488398102,0.18336441,108180.0,108170.0,1.16926779]
[1748488398301,0.18336441,108180.0,108170.0,1.16941587]
[1748488398716,0.18336441,108180.0,108170.0,1.16941195]
[1748488399128,0.18336441,108180.0,108170.0,1.16941192]
[1748488399684,0.18336441,108180.0,108170.0,1.16079667]
[1748488399872,0.18336441,108180.0,108170.0,0.73421988]
[1748488400072,0.18336441,108180.0,108170.0,0.79118808]
[1748488400073,0.19846441,108180.0,108170.0,0.79118808]
[1748488400283,0.21456441,108180.0,108170.0,0.79979728]
[1748488401174,0.21456441,108180.0,108170.0,0.79118808]
[1748488401393,0.21456441,108180.0,108170.0,0.79979845]
[1748488401600,0.21456441,108180.0,108170.0,0.79979319]
[1748488402239,0.21456441,108180.0,108170.0,0.79118808]
[1748488402443,0.21456441,108180.0,108170.0,0.51506808]
[1748488402652,0.32015921,108180.0,108170.0,0.09762808]
[1748488403732,0.32015921,108180.0,108170.0,0.00014808]
[1748488404985,0.30015921,108180.0,108170.0,0.00014808]
[1748488406652,0.60147921,108180.0,108170.0,0.00014808]
[1748488407277,0.30015921,108180.0,108170.0,0.00014808]
[1748488407481,0.60151921,108180.0,108170.0,0.00014808]
[1748488411994,0.58151921,108180.0,108170.0,0.00014808]
[1748488412837,0.28015921,108180.0,108170.0,0.00014808]
[1748488413018,0.58151921,108180.0,108170.0,0.00014808]
[1748488414429,0.14336441,108180.0,108170.0,0.00014808]
[1748488414582,0.14336441,108180.0,108170.0,0.03923517]
[1748488414583,0.44472441,108180.0,108170.0,0.03923517]
[1748488415000,0.44472441,108180.0,108170.0,0.0392349]
[1748488415591,0.14336441,108180.0,108170.0,0.0392349]
[1748488415794,0.14336441,108180.0,108170.0,0.03923466]
[1748488415795,0.44468441,108180.0,108170.0,0.03923466]
[1748488416364,0.44468441,108180.0,108170.0,0.00873466]
[1748488417888,0.44468441,108180.0,108170.0,0.00874809]
[1748488418250,0.14336441,108180.0,108170.0,0.00874809]
[1748488418437,0.44468441,108180.0,108170.0,0.00874809]
[1748488418649,0.45998441,108180.0,108170.0,0.00874809]
[1748488419287,0.43998441,108180.0,108170.0,0.00875423]
[1748488419625,0.45498441,108180.0,108170.0,0.00875423]
[1748488419989,0.45498441,108180.0,108170.0,0.00875504]
[1748488420558,0.45498441,108180.0,108170.0,0.00875712]
[1748488420763,0.45498441,108180.0,108170.0,0.00875735]
[1748488421620,0.56057921,108180.0,108170.0,0.00875735]
[1748488422257,0.56057921,108180.0,108170.0,0.00876238]
[1748488422505,0.56057921,108180.0,108170.0,0.00876237]
[1748488423338,0.56057921,108180.0,108170.0,0.0087672]
[1748488423745,0.56057921,108180.0,108170.0,0.00876689]
[1748488424758,0.56057921,108180.0,108170.0,0.00014808]
[1748488424959,0.56057921,108180.0,108170.0,0.00877045]
[1748488425112,0.56057921,108180.0,108170.0,0.00877529]
[1748488426122,0.56053921,108180.0,108170.0,0.00877586]
[1748488426430,0.54053921,108180.0,108170.0,0.00877586]
[1748488426974,0.54053921,108180.0,108170.0,0.00878079]
[1748488427124,0.54053921,108180.0,108170.0,0.00014808]
[1748488427309,0.54053921,108180.0,108170.0,0.00878684]
[1748488428537,0.52553921,108180.0,108170.0,0.00878471]
[1748488428853,0.52553921,108180.0,108170.0,0.00878489]
[1748488429801,0.22425921,108180.0,108170.0,0.00878856]
[1748488430007,0.52553921,108180.0,108170.0,0.00878856]
[1748488430229,0.52553921,108180.0,108170.0,0.0087888]
[1748488430482,0.52553921,108180.0,108170.0,0.00878917]
[1748488431099,0.52553921,108180.0,108170.0,0.00014808]
[1748488431318,0.52553921,108180.0,108170.0,0.00878917]
[1748488431757,0.52553921,108180.0,108170.0,0.00878937]
[1748488431965,0.54073921,108180.0,108170.0,0.00878937]
[1748488432175,0.54073921,108180.0,108170.0,0.00878934]
[1748488432797,0.54069921,108180.0,108170.0,0.00878934]
[1748488433354,0.52069921,108180.0,108170.0,0.01378947]
[1748488433570,0.50549921,108180.0,108170.0,0.01378947]
[1748488434710,0.50549921,108180.0,108170.0,0.01378921]
[1748488435366,0.50549921,108180.0,108170.0,0.01378917]
[1748488436688,0.50549921,108180.0,108170.0,0.01378995]
[1748488437014,0.50549921,108180.0,108170.0,0.01378994]
[1748488438673,0.50549921,108180.0,108170.0,0.01379091]
[1748488439638,0.50549921,108180.0,108170.0,0.00514808]
[1748488439858,0.50549921,108180.0,108170.0,0.01379177]
[1748488440164,0.50549921,108180.0,108170.0,0.00514808]
[1748488440581,0.50549921,108180.0,108170.0,0.01379275]
[1748488440980,0.48549921,108180.0,108170.0,0.01379275]
[1748488441258,0.48549921,108180.0,108170.0,0.01379378]
[1748488441807,0.48549921,108180.0,108170.0,0.0137938]
[1748488442033,0.48549921,108180.0,108170.0,0.0137937]
[1748488443151,0.09320526,108180.0,108170.0,0.0137937]
[1748488443366,0.36456441,108180.0,108170.0,0.01379473]
[1748488443577,0.36456441,108180.0,108170.0,0.04549473]
[1748488443783,0.36456441,108180.0,108170.0,0.01379473]
[1748488444446,0.38056441,108180.0,108170.0,0.01379473]
[1748488444661,0.38056441,108180.0,108170.0,0.01379542]
[1748488445425,0.38056441,108180.0,108170.0,0.01379575]
[1748488445696,0.38056441,108180.0,108170.0,0.0137957]
[1748488446182,0.48615921,108180.0,108170.0,0.01379584]
[1748488447148,0.48615921,108180.0,108170.0,0.01379631]
[1748488448351,0.61691553,108180.0,108170.0,0.01379631]
[1748488448579,0.63351553,108180.0,108170.0,0.01379606]
[1748488449730,0.63351553,108180.0,108170.0,0.01379611]
[1748488450356,0.63351553,108180.0,108170.0,0.0137962]
[1748488451738,0.63351553,108180.0,108170.0,0.01379641]
[1748488451946,0.63351553,108180.0,108170.0,0.01379646]
[1748488452136,0.63351553,108180.0,108170.0,0.00514808]
[1748488452375,0.63351553,108180.0,108170.0,0.01379646]
[1748488452591,0.63351553,108180.0,108170.0,0.01379652]
[1748488452807,0.63351553,108180.0,108170.0,0.00514808]
[1748488453011,0.63351553,108180.0,108170.0,0.01379655]
[1748488453500,0.63351553,108180.0,108170.0,0.0137966]
[1748488455030,0.63351553,108180.0,108170.0,0.00514808]
[1748488455244,0.61351553,108180.0,108170.0,0.01379642]
[1748488455449,0.62275921,108180.0,108170.0,0.01379642]
[1748488455685,0.62275921,108180.0,108170.0,0.00514808]
[1748488455949,0.62275921,108180.0,108170.0,0.01379649]
[1748488457058,0.62275921,108180.0,108170.0,0.01379695]
[1748488457488,0.62275921,108180.0,108170.0,0.01379666]
[1748488457906,0.62275921,108180.0,108170.0,0.01379567]
[1748488458321,0.62275921,108180.0,108170.0,0.01379555]
[1748488458537,0.62275921,108180.0,108170.0,0.01379526]
[1748488458742,0.62275921,108180.0,108170.0,0.01379517]
[1748488460377,0.62275921,108180.0,108170.0,0.00514808]
[1748488460684,0.62275921,108180.0,108170.0,0.01379534]
[1748488460864,0.62275921,108180.0,108170.0,0.00514808]
[1748488461078,0.62275921,108180.0,108170.0,0.01379282]
[1748488461903,0.62275921,108180.0,108170.0,0.01379159]
[1748488462317,0.60275921,108180.0,108170.0,0.01379159]